Cogmind - Beta 11 X7 @@@ ROGUE MODE // 2021.09.19 @ 23:45:41 Player: Runia Result: Destroyed by G-34 Mercenary with Small Laser Performance ------------- Evolutions (0) 0 Regions Visited (1) 200 Robots Destroyed (9) 45 Value Destroyed (229) 229 Prototype IDs (0) 0 Alien Tech Used (0) 0 Bonus (0) 0 TOTAL SCORE: 474 Bonus ------- None Cogmind --------- Core Integrity 0/250 Matter 300/300 Energy 98/100 System Corruption 0% Temperature Cool (7) Movement Treading (160) Location -10/Materials Parts ------- > --- POWER (1) -------- (None) > --- PROPULSION (2) --- Light Treads > --- UTILITY (2) ------ Small Storage Unit > --- WEAPON (2) ------- (None) > --- INVENTORY (8) ---- Ion Engine Peak State ------------ > --- POWER ------------ Light Nuclear Core > --- PROPULSION ------- Aluminum Leg Aluminum Leg > --- UTILITY ---------- Small Storage Unit > --- WEAPON ----------- Assault Rifle Assault Rifle > --- INVENTORY -------- Ion Engine Light Ion Engine Light Treads Light Treads [Rating: 8] Favorites ----------- Power Light Nuclear Core Engine Light Ion Engine Power Core Light Nuclear Core Propulsion Aluminum Leg Treads Light Treads Leg Aluminum Leg Utility Small Storage Unit Storage Small Storage Unit Weapon Assault Rifle Ballistic Gun Assault Rifle Build | -11 -10 ------- Run | Scr Mat Slots Evolved . | . . Power . | . . Propulsion . | . . Utility . | . . Weapon . | . . Parts Attached 3 | . 3 Power 1 | . 1 Engine . | . . Core 1 | . 1 Reactor . | . . Propulsion 2 | . 2 Treads 2 | . 2 Leg . | . . Wheel . | . . Hover . | . . Flight . | . . Utility . | . . Device . | . . Storage . | . . Processor . | . . Hackware . | . . Protection . | . . Artifact . | . . Weapon . | . . Energy Gun . | . . Energy Cannon . | . . Ballistic Gun . | . . Ballistic Cannon . | . . Launcher . | . . Special Weapon . | . . Impact Weapon . | . . Slashing Weapon . | . . Piercing Weapon . | . . Special Melee Weapon . | . . Unidentified Prototypes . | . . Parts Lost 4 | . 4 Power 1 | . 1 Propulsion 1 | . 1 Utility . | . . Weapon 2 | . 2 Highest Loss Streak 2 | . 2 Average Slot Usage (%) 71 | . 71 Engine 3 | . 3 Core 7 | . 7 Treads 10 | . 10 Leg 16 | . 16 Storage 14 | . 14 Ballistic Gun 18 | . 18 Naked Turns . | . . Heaviest Build 14 | 12 14 Greatest Support 40 | 20 40 Greatest Overweight (x) . | . . Average Overweight (x) . | . . Largest Inventory Capacity 8 | 8 8 Average Capacity 8 | 8 8 Most Carried 6 | 6 4 Average Carried 2 | 3 2 Final Capacity 8 | 8 8 Final Carried 3 | 3 1 Class Distribution -------------------- 100% | Mutant Dominant Class ---------------- Mutant | -10/Materials Resources | -11 -10 ----------- Run | Scr Mat Matter Collected 334 | 218 116 Remotely . | . . Salvage Created 360 | 78 282 Parts 14 | 2 12 Haulers Intercepted . | . . Recyclers Shooed 2 | 1 1 Parts Field Recycled . | . . Retrieved Matter . | . . Parts Self-Destructed . | . . Prevented . | . . Kills | -11 -10 ------- Run | Scr Mat Combat Hostiles Destroyed 8 | . 8 Melee 1 | . 1 Guns 7 | . 7 Classes Destroyed 3 | 1 2 Recycler 1 | 1 . Swarmer 3 | . 3 Grunt 5 | . 5 Best Kill Streak 4 | 1 4 Combat Bots Only 4 | . 4 Max Kills in Single Turn 1 | 1 1 Gunslinging . | . . Exploded . | . . Melee 1 | . 1 Uniques/NPCs Destroyed . | . . Combat | -11 -10 -------- Run | Scr Mat Damage Taken 966 | . 966 Core 255 | . 255 Absorbed by Shields . | . . Core Remaining (%) 100 | 100 . Volleys Fired 50 | 3 47 Largest 2 | 2 2 Hottest 40 | 40 40 Shots Fired 77 | 6 71 Gun 77 | 6 71 Cannon . | . . Launcher . | . . Special . | . . Kinetic 77 | 6 71 Thermal . | . . Explosive . | . . Electromagnetic . | . . Robot Hit Streak 12 | 4 12 Robot Miss Streak 5 | 1 5 Penetration Max . | . . Secondary Targets . | . . Shots Hit Robots 45 | 4 41 Core Hits 18 | 2 16 Critical Kills . | . . Critical Parts Destroyed . | . . Critical Strikes . | . . Melee Attacks . | . . Impact . | . . Slashing . | . . Piercing . | . . Sneak Attacks . | . . Combat Hostiles . | . . Follow-up Attacks . | . . Damage Inflicted 630 | 43 587 Guns 571 | 43 528 Cannons . | . . Explosions . | . . Melee . | . . Ramming 59 | . 59 Kinetic 571 | 43 528 Thermal . | . . Explosive . | . . Electromagnetic . | . . Impact . | . . Slashing . | . . Piercing . | . . Highest Corruption . | . . Average Corruption . | . . Corruption Purged . | . . Overload Shots . | . . Overflow Damage . | . . Projectiles . | . . Explosions . | . . Melee . | . . Knockbacks . | . . Impact . | . . Kinetic . | . . Secondary . | . . Self-Inflicted Damage . | . . Shots . | . . Rammed 42 | . 42 Targets Rammed 43 | . 43 Kicked . | . . Crushed 1 | . 1 Highest Temperature 20 | . 20 Average Temperature 5 | . 5 Received Heat Transfer 438 | . 438 Siege Activations . | . . Robots Corrupted . | . . Combat Hostiles . | . . Parts Fried . | . . Impact Corruptions . | . . Robots Melted . | . . Combat Hostiles . | . . Parts Melted . | . . Heat Transferred . | . . Parts Sabotaged . | . . Parts Stolen . | . . Parts Stripped . | . . Power Chain Reactions . | . . Missiles Intercepted . | . . Alert | -11 -10 ------- Run | Scr Mat Peak Influence 213 | 5 213 Initial 3 | . 3 Average 113 | 1 118 Maximum Alert Level 1 | . 1 Low Security (%) 84 | 100 83 Level 1 15 | . 16 Level 2 . | . . Level 3 . | . . Level 4 . | . . Level 5 . | . . High Security . | . . Max Security . | . . Squads Dispatched 2 | . 2 Investigation 1 | . 1 Extermination . | . . Reinforcement 1 | . 1 Assault . | . . Garrison . | . . Intercept . | . . Construction Impeded . | . . Haulers Reinforced . | . . Active Scanning Responses . | . . Cargo Convoy Interrupts . | . . Stealth | -11 -10 --------- Run | Scr Mat Distress Signals . | . . Communications Jammed . | . . Distress Signals . | . . Times Spotted 16 | . 16 Peak Tracking Total 5 | . 5 Tactical Retreats 1 | . 1 Traps | -11 -10 ------- Run | Scr Mat Traps Triggered 1 | . 1 Indirectly . | . . Trap Hack Attempts . | . . Triggered . | . . Disarmed . | . . Reprogrammed . | . . Reused . | . . Traps Extracted . | . . Installed . | . . Triggered . | . . Machines | -11 -10 ---------- Run | Scr Mat Machines Disabled 1 | . 1 Max in Single Turn 1 | . 1 Machines Sabotaged . | . . Garrisons Compromised . | . . Overloaded Fab Kills . | . . Fab Network Shutdowns . | . . Hacking | -11 -10 --------- Run | Scr Mat Machines Accessed . | . . Terminals . | . . Fabricators . | . . Repair Stations . | . . Recycling Units . | . . Scanalyzers . | . . Garrison Access . | . . Total Hacks . | . . Successful . | . . Failed . | . . Catastrophic . | . . Database Lockouts . | . . Manual . | . . Terminals . | . . Fabricators . | . . Repair Stations . | . . Recycling Units . | . . Scanalyzers . | . . Garrison Access . | . . Terminal Hacks . | . . Fabricator Hacks . | . . Repair Station Hacks . | . . Recycling Unit Hacks . | . . Scanalyzer . | . . Garrison Access Hacks . | . . Unauthorized Hacks . | . . Terminals . | . . Fabricators . | . . Repair Stations . | . . Recycling Units . | . . Scanalyzers . | . . Garrison Access . | . . Data Cores Recovered . | . . Used . | . . Hacking Detections . | . . Full Trace Events . | . . Feedback Events . | . . Feedback Blocked . | . . Robot Schematics Acquired . | . . Robots Built . | . . Matter . | . . Time . | . . Total Robot Build Rating . | . . Part Schematics Acquired . | . . Parts Built . | . . Matter . | . . Time . | . . Total Part Build Rating . | . . Parts Repaired . | . . Time . | . . Parts Recycled . | . . Recycled Matter . | . . Retrieved Matter . | . . Retrieved Components . | . . Parts Scanalyzed . | . . Part Schematics Acquired . | . . Parts Damaged . | . . Bothacking | -11 -10 ------------ Run | Scr Mat Used RIF Installer . | . . Robots Hacked . | . . Non-combat . | . . Combat . | . . Robot Hacks Applied . | . . Relay Couplers Released . | . . Robots Rewired . | . . Allies Hacked . | . . Hacks Repelled . | . . Allies | -11 -10 -------- Run | Scr Mat Total Allies . | . . Largest Group . | . . Highest-Rated Group . | . . Highest-Rated Ally . | . . Total Orders . | . . Ally Attacks . | . . Total Damage . | . . Kills . | . . Allies Corrupted . | . . Allies Melted . | . . Intel | -11 -10 ------- Run | Scr Mat Robot Analysis Total . | . . Derelict Logs Recovered . | . . Drone Launches . | . . Drone Recoveries . | . . Exploration | -11 -10 ------------- Run | Scr Mat Turns Passed 382 | 16 366 Spaces Moved 125 | 5 120 Core . | . . Treads 18 | . 18 Legs 107 | 5 102 Wheels . | . . Hover . | . . Flight . | . . Fastest Speed 120 | 120 120 Average Speed 125 | 120 126 Slowest Speed 160 | 120 160 Overloaded Moves . | . . Propulsion Burnouts . | . . Robots Hopped . | . . Cave-ins Triggered . | . . Exploration Rate (%) 21 | 2 40 Regions Visited 1 Branch Regions . Pre-discovered Areas . | . . Known Exits Taken . | . . Unknown Exits Taken 1 | 1 . Scrap Searched . | . . Spaces Dug . | . . Terrain Destroyed . | . . Melee . | . . Projectile . | . . AOE . | . . Terrain Rammed . | . . Walls Destroyed . | . . Machines Disabled . | . . Actions | -11 -10 --------- Run | Scr Mat Total 249 | 10 239 Wait 22 | . 22 Move 124 | 4 120 Hop . | . . Pick Up 1 | . 1 Fast Attach . | . . Attach . | . . Detach . | . . Swap 3 | . 3 Drop 6 | 3 3 Fire 50 | 3 47 Melee . | . . Ram . | . . Kick . | . . Crush 43 | . 43 Escape Stasis . | . . Rewire . | . . Trap . | . . Miscellaneous . | . . Route ------- -11/Scrapyard -10/Materials (discovered 2 exits: [*Mat] / [*Min]) History --------- Turn | Location | Event 1 | -11/Scrapyard | Discovered new exit (range 3) 17 | -11/Scrapyard | Entered Materials 134 | -10/Materials | Discovered new exit (range 16) 218 | -10/Materials | Discovered new exit (range 16) 280 | -10/Materials | Core integrity fell below 50% 311 | -10/Materials | Build established: Mutant 338 | -10/Materials | Core integrity fell below 20% 383 | -10/Materials | Destroyed by G-34 Mercenary with Small Laser Last Messages --------------- K-01 Serf collects debris. Slammed into G-34 Mercenary. K-01 Serf collects debris. Slammed into G-34 Mercenary. K-01 Serf collects debris. Slammed into G-34 Mercenary. K-01 Serf destroyed. Slammed into G-34 Mercenary. R-06 Scavenger collects Wheel. Slammed into G-34 Mercenary. Crushed G-34 Mercenary. G-34 Mercenary destroyed. Acquired 50 matter. Slammed into R-06 Scavenger. Slammed into W-16 Scout. Slammed into G-34 Mercenary. Lgt. Nuclear Core destroyed. Slammed into G-34 Mercenary. Lgt. Treads destroyed. Slammed into G-34 Mercenary. Map ----- +----------------------------------------------------+ | | | | | | | | | ?????????????????????????????????????????????????? | | ?????????????????????????????????????????????????? | | ?????????????????????????????????????????????????? | | ?????????????????????????????????????????????????? | | ?????????????????????????????????????????????????? | | ?????????????????????????????????????????????????? | | ?????????????????????????????????????????????????? | | ?????????????????????????????????????????????????? | | ?????????????????????????????????????????????????? | | ?"""?????????????????????????????????????????????? | | "|||"??????????????????#####?????????????????????? | | " ""?????????????????# #?????????????????????? | | ?????????????????# < ####??????????????????? | | < ?????????????????# ???????????????????? | | ??????????????????+ ????????????????????? | | ???#######????????# ?????????????????????? | | ??? #????????# % #?????????????????????? | | # #??? #????????# #?????????????????????? | | # #??? #????????# #?????????????????????? | | #^ #??? !!!#????????#%% #?????????????????????? | | # #??? !!!#????????#%%g#?????????????????????? | | # #??? !! #????????#%@%#?????????????????????? | | # #??? #????????# % #?????????????????????? | | # #??#"" #????????# %#?????????????????????? | | + #??#"" ########?# #?????????????????????? | | # #??#"T # #?# ########??????????????? | | # ##?#"" # #?# # #??????????????? | | #?#"" # #?# # #??????????????? | | #??? # """ #?# %+% """ #??????????????? | | ######+### """ #?# # !""" #??????????????? | | = =# """ ### # """ #??????????????? | | %= / """ + # #??????????????? | | # =% # ####+#########??????????????? | | # """ "" % # #? ?????????????????????? | | # """ """ # "" # """ ???????????????????? | | # """ """ # "T # """ #??????????????????? | | # # "" # """ #??????????????????? | | # # # """ #??????????????????? | | # """ """ ######## """ #??????????????????? | | # """ """ #????#???? #??????????????????? | | # """ """ #????????? #??????????????????? | | /* #????????? #??????????????????? | | # #?????????#####??????????????????? | | ###+####### #????????????????????????????????? | | # ????## #????????????????????????????????? | | # [ * ???# #????????????????????????????????? | +----------------------------------------------------+ Best States ------------- Heat Dissipation 25 Energy Generation 14 Energy Capacity 160 Matter Stores 300 Matter Capacity 300 Sight Range 16 Terrain Scan Density 10 Evasion (%) 55 Recoil Reduction 2 Item Schematics ----------------- None Robot Schematics ------------------ None Fabricated ------------ Nothing Alien Tech Used ----------------- None Achievements -------------- None Challenges ------------ None Game ------ Seed KineticCarbideSteel Manual? 0 Play Time 00:05:16 Cumulative 334.7 hours Start 2021.09.19 @ 23:42:13 End 2021.09.19 @ 23:45:41 Sessions 1 Manual Loads 0 Difficulty Rogue Special Mode None Game No. 360 Rogue 360 Adventurer 0 Explorer 0 Win Type - Total 6 Types 6/0/0/0/0/0/0/0/0 Lore% 78 Gallery% 90 Achievement% 68 Wizard Run 0 Options --------- ASCII 0 Keyboard 0 Movement Mouse Keybinds 1 Fullscreen 2 Font 24/Smallcaps Map View 76x50 Tactical HUD 1 Map Filters NONE Filters NONE Steam 1 RUN: 37a82395-3ff3-4c1d-9510-ae4db3e50c62